fUST/lending_fUST_20240407
["ID","MTS","AMOUNT","RATE_DAILY","PERIOD"]
[321732813,1712485832029,-464.42260257,0.00034483,4]
[321732815,1712485832039,-380.8409303,0.00034504,2]
[321732817,1712485832048,-595.86148215,0.00035,2]
[321732819,1712485832058,-1012.20235103,0.00035,4]
[321732826,1712485832115,-5916.17673429,0.00035,4]
[321732828,1712485832125,-160.0,0.00035001,2]
[321732830,1712485832134,-5632.30632473,0.00035002,2]
[321732832,1712485832143,-884.66196796,0.00035104,4]
[321732834,1712485832152,-398.79727597,0.00035105,2]
[321732836,1712485832162,-331.51121199,0.00036,14]
[321732838,1712485832173,-260.80951876,0.00036064,7]
[321732840,1712485832183,-155.01085076,0.00036087,4]
[321732842,1712485832193,-156.0536428,0.00036088,4]
[321732844,1712485832202,-40090.733195,0.00036089,2]
[321732846,1712485832211,-184.26364,0.00036164,2]
[321732848,1712485832220,-191.684456,0.00036164,2]
[321732850,1712485832230,-154.0,0.00037,30]
[321732852,1712485832239,-392.39480487,0.000372,15]
[321732854,1712485832249,-488.71165462,0.000372,15]
[321732856,1712485832258,-500.0,0.000372,15]
[321732858,1712485832267,-25676.71216646,0.00037201,4]
[321732913,1712485840414,-1997.68963592,0.00037201,4]
[321732917,1712485843198,-2865.0,0.00037201,4]
[321733276,1712487047232,-190.69912324,0.00033501,4]
[321733277,1712487047242,-138.21058423,0.00033502,2]
[321733288,1712487162414,-151.0,0.000418,30]
[321733446,1712487519612,179.4570024,0.00041801,120]
[321733648,1712488232358,-1616.30636342,0.00027033,2]
[321733650,1712488232367,-360.66354297,0.00027033,2]
[321733651,1712488232376,-210.31341368,0.00027062,2]
[321733652,1712488232385,-190.69912324,0.00032494,4]
[321733653,1712488232394,-193.95662846,0.00032495,4]
[321733654,1712488232404,-1006.73411322,0.00033502,2]
[321733655,1712488232413,-123.03417465,0.00034999,4]
[321733664,1712488238380,-242.59893105,0.00027032,2]
[321733666,1712488238389,-341.38842792,0.00034999,4]
[321733668,1712488238399,-155.01705188,0.00035,4]
[321733670,1712488238409,-595.86148215,0.00035,2]
[321733672,1712488238419,-396.39215654,0.00035177,2]
[321733674,1712488238428,-646.24723487,0.00035177,2]
[321733676,1712488238438,-400.0,0.00036081,2]
[321733678,1712488238447,-238.80355559,0.00036081,2]
[321733680,1712488238459,-161.19644441,0.00036081,2]
[321733683,1712488238469,-211.82568144,0.00036082,4]
[321733685,1712488238478,-309.47264774,0.00036082,4]
[321733686,1712488238488,-254.33999328,0.00036082,4]
[321733688,1712488238497,-156.13432282,0.00036082,4]
[321733691,1712488238509,-249.72324933,0.00036082,4]
[321733693,1712488238518,-125.54913848,0.00036083,4]
[321733740,1712488243570,-95.13973666,0.00036083,4]
[321733741,1712488243580,-212.70353643,0.00036083,4]
[321733742,1712488243590,-336.54855302,0.00036083,4]
[321733743,1712488243600,-2807.80898399,0.00036083,4]
[321733744,1712488243609,-16340.53986526,0.00036084,4]
[321733745,1712488243618,-236.849724,0.00036164,2]
[321733746,1712488243628,-166.783313,0.00036164,2]
[321733747,1712488243637,-184.26364,0.00036164,2]
[321733748,1712488243647,-1230.04586975,0.00037002,2]
[321733749,1712488243747,-202.85127699,0.00037102,16]
[321733750,1712488243760,-766.93956508,0.000372,2]
[321733751,1712488243770,-1570.96235536,0.000372,2]
[321733752,1712488243779,-155.38043718,0.00037202,4]
[321733753,1712488243788,-155.2986314,0.00037202,4]
[321733754,1712488243797,-235.46220989,0.00037202,4]
[321733755,1712488243806,-181.38821394,0.00037202,4]
[321733756,1712488243815,-243.83203438,0.00037202,4]
[321733757,1712488243824,-261.41934101,0.00037202,4]
[321733758,1712488243834,-854.98724875,0.00037202,4]
[321733759,1712488243843,-2515.37065676,0.00037202,4]
[321733760,1712488243853,-1930.50461232,0.00037202,4]
[321733761,1712488243862,-2475.33142811,0.00037202,4]
[321733762,1712488243872,-1868.13183,0.00037203,2]
[321733763,1712488243882,-1868.13183,0.00037203,2]
[321733764,1712488243891,-1868.13183,0.00037203,2]
[321733765,1712488243900,-1868.13183,0.00037203,2]
[321733766,1712488243909,-156.07139287,0.00037203,4]
[321733767,1712488243918,-303.12917732,0.00037203,4]
[321733768,1712488243928,-155.51547205,0.00037203,4]
[321733769,1712488243937,-155.39558152,0.00037203,4]
[321733770,1712488243946,-1791.64995663,0.00037203,4]
[321733771,1712488243955,-155.87364312,0.00037203,4]
[321733772,1712488243965,-158.01927284,0.00037203,4]
[321733773,1712488243974,-353.80170421,0.00037203,4]
[321733774,1712488243984,-210.52208177,0.00037203,4]
[321733775,1712488243993,-1960.01777038,0.00037203,4]
[321733776,1712488244002,-437.58422328,0.00037203,4]
[321733777,1712488244011,-365.59888098,0.00037203,4]
[321733778,1712488244020,-168.16920209,0.00037203,15]
[321733779,1712488244029,-423.73356627,0.00037203,15]
[321733780,1712488244039,-1868.13183,0.00037204,2]
[321733781,1712488244048,-1868.13183,0.00037204,2]
[321733782,1712488244057,-1868.13183,0.00037204,2]
[321733783,1712488244065,-1868.13183,0.00037204,2]
[321733784,1712488244075,-201.00687971,0.00037204,4]
[321733785,1712488244084,-156.10442207,0.00037204,4]
[321733786,1712488244093,-7461.69539405,0.00037204,4]
[321733787,1712488244102,-155.35891984,0.00037204,4]
[321733788,1712488244111,-4983.89848758,0.00037204,4]
[321733789,1712488244121,-290.25923092,0.00037204,4]
[321733790,1712488244131,-1230.04586971,0.00037316,2]
[321733791,1712488244140,-1868.13183,0.00037316,2]
[321733792,1712488244149,-1868.13183,0.00037316,2]
[321733793,1712488244159,-278.64343175,0.00037585,4]
[321733794,1712488244170,-1230.04586971,0.00037629,2]
[321733795,1712488244182,-1230.04586971,0.00037943,2]
[321733796,1712488244191,-1230.04586971,0.00038256,2]
[321733797,1712488244200,-1868.13183,0.00038256,2]
[321733798,1712488244210,-1868.13183,0.00038256,2]
[321733799,1712488244219,-182.76353306,0.0003835,2]
[321733800,1712488244229,-253.15719799,0.00038351,2]
[321733801,1712488244238,-2494.04494356,0.00038352,4]
[321733802,1712488244248,-7485.15675479,0.00038352,2]
[321733803,1712488244258,-1868.13183,0.00038352,2]
[321733804,1712488244268,-1868.13183,0.00038352,2]
[321733805,1712488244279,-1868.13183,0.00038352,2]
[321733806,1712488244288,-1868.13183,0.00038352,2]
[321733807,1712488244297,-6928.37908532,0.00038353,4]
[321733808,1712488244307,-1868.13183,0.00038353,2]
[321733809,1712488244316,-1868.13183,0.00038353,2]
[321733810,1712488244325,-1482.12028671,0.00038354,4]
[321733811,1712488244334,-155.32624333,0.00038354,4]
[321733812,1712488244344,-158.05633547,0.00038354,4]
[321733813,1712488244353,-726.10071704,0.00038354,4]
[321733814,1712488244364,-748.06499025,0.00038354,4]
[321733815,1712488244373,-207.98178099,0.00038354,4]
[321733816,1712488244382,-637.12941329,0.00038354,4]
[321733817,1712488244391,-546.64759302,0.00038354,4]
[321733818,1712488244401,-1442.43440394,0.00038354,4]
[321733819,1712488244411,-858.00828952,0.00038354,4]
[321733820,1712488244421,-1664.83175865,0.00038354,4]
[321733821,1712488244431,-1868.13183,0.00038354,2]
[321733822,1712488244439,-1868.131838,0.00038354,2]
[321733823,1712488244449,-156.9322198,0.00038356,4]
[321733824,1712488244458,-500.0,0.00038356,5]
[321733825,1712488244467,-500.0,0.00038356,5]
[321733826,1712488244477,-500.0,0.00038356,5]
[321733827,1712488244486,-499.64149906,0.00038356,5]
[321733828,1712488244497,-507.92736546,0.00038356,5]
[321733829,1712488244506,-500.0,0.00038356,5]
[321733830,1712488244515,-500.0,0.00038356,5]
[321733831,1712488244525,-421.80705336,0.00038356,5]
[321733832,1712488244534,-500.0,0.00038356,5]
[321733833,1712488244543,-250.15,0.00038356,5]
[321733834,1712488244554,-500.0,0.00038356,5]
[321733835,1712488244563,-500.0,0.00038356,5]
[321733836,1712488244572,-500.0,0.00038356,5]
[321733837,1712488244581,-243.75808276,0.00038356,5]
[321733838,1712488244591,-500.0,0.00038356,5]
[321733839,1712488244600,-500.0,0.00038356,5]
[321733840,1712488244610,-500.0,0.00038356,5]
[321733841,1712488244619,-500.0,0.00038356,5]
[321733842,1712488244629,-500.0,0.00038356,5]
[321733843,1712488244638,-554.25,0.00038356,5]
[321733844,1712488244647,-526.53953362,0.00038356,5]
[321733845,1712488244656,-500.0,0.00038356,5]
[321733846,1712488244667,-510.17054695,0.00038356,5]
[321733847,1712488244677,-500.0,0.00038356,5]
[321733848,1712488244686,-500.0,0.00038356,5]
[321733849,1712488244695,-500.0,0.00038356,5]
[321733850,1712488244704,-580.29536246,0.00038356,5]
[321733851,1712488244713,-500.0,0.00038356,5]
[321733852,1712488244722,-500.0,0.00038356,5]
[321733853,1712488244731,-570.7,0.00038356,5]
[321733854,1712488244741,-500.0,0.00038356,5]
[321733855,1712488244751,-605.81114631,0.00038356,5]
[321733856,1712488244759,-500.0,0.00038356,5]
[321733857,1712488244769,-500.0,0.00038356,5]
[321733858,1712488244779,-391.35688816,0.00038356,5]
[321733859,1712488244789,-500.0,0.00038356,5]
[321733860,1712488244798,-500.0,0.00038356,5]
[321733861,1712488244807,-500.0,0.00038356,5]
[321733862,1712488244816,-500.0,0.00038356,5]
[321733863,1712488244825,-500.0,0.00038356,5]
[321733864,1712488244834,-500.0,0.00038356,5]
[321733865,1712488244844,-407.63152271,0.00038356,5]
[321733866,1712488244852,-500.63548081,0.00038356,5]
[321733867,1712488244862,-500.0,0.00038356,5]
[321733868,1712488244871,-500.0,0.00038356,5]
[321733869,1712488244881,-500.0,0.00038356,5]
[321733870,1712488244890,-504.16883166,0.00038356,5]
[321733871,1712488244899,-500.0,0.00038356,5]
[321733872,1712488244909,-500.0,0.00038356,5]
[321733873,1712488244917,-500.0,0.00038356,5]
[321733874,1712488244927,-961.87,0.00038356,5]
[321733875,1712488244936,-500.0,0.00038356,5]
[321733876,1712488244944,-500.0,0.00038356,5]
[321733877,1712488244953,-500.0,0.00038356,5]
[321733878,1712488244962,-500.0,0.00038356,5]
[321733879,1712488244971,-500.0,0.00038356,5]
[321733880,1712488244980,-500.0,0.00038356,5]
[321733881,1712488244990,-1902.74095395,0.00038628,4]
[321733882,1712488245000,-500.0,0.00038628,5]
[321733883,1712488245009,-281.52838135,0.0003863,5]
[321733884,1712488245018,-500.0,0.0003863,5]
[321733885,1712488245028,-500.0,0.0003863,5]
[321733886,1712488245037,-505.76974549,0.0003863,5]
[321733887,1712488245046,-500.0,0.0003863,5]
[321733888,1712488245056,-554.25,0.0003863,5]
[321733889,1712488245065,-500.0,0.0003863,5]
[321733890,1712488245074,-500.0,0.0003863,5]
[321733891,1712488245084,-500.0,0.0003863,5]
[321733892,1712488245093,-500.0,0.0003863,5]
[321733893,1712488245102,-500.0,0.0003863,5]
[321733894,1712488245111,-252.42,0.0003863,5]
[321733895,1712488245120,-500.0,0.0003863,5]
[321733896,1712488245129,-602.10882952,0.0003863,5]
[321733897,1712488245139,-500.0,0.0003863,5]
[321733898,1712488245148,-232.22,0.0003863,5]
[321733899,1712488245157,-500.0,0.0003863,5]
[321733900,1712488245166,-500.0,0.0003863,5]
[321733901,1712488245180,-500.0,0.0003863,5]
[321733902,1712488245190,-500.0,0.0003863,5]
[321733903,1712488245200,-500.0,0.0003863,5]
[321733904,1712488245210,-961.87,0.0003863,5]
[321733905,1712488245221,-572.87,0.0003863,5]
[321733906,1712488245230,-500.0,0.0003863,5]
[321733907,1712488245240,-500.0,0.0003863,5]
[321733908,1712488245251,-157.736296,0.0003863,5]
[321733909,1712488245260,-500.0,0.0003863,5]
[321733910,1712488245269,-500.0,0.0003863,5]
[321733911,1712488245279,-554.25,0.00038904,5]
[321733912,1712488245288,-276.9,0.00038904,5]
[321733913,1712488245298,-500.0,0.00038904,5]
[321733914,1712488245307,-500.0,0.00038904,5]
[321733915,1712488245317,-500.0,0.00038904,5]
[321733916,1712488245326,-500.0,0.00038904,5]
[321733917,1712488245335,-500.0,0.00038904,5]
[321733918,1712488245345,-500.0,0.00038904,5]
[321733919,1712488245354,-378.59,0.00038904,5]
[321733920,1712488245364,-609.8,0.00038904,5]
[321733921,1712488245373,-961.87,0.00038904,5]
[321733922,1712488245382,-500.0,0.00038904,5]
[321733923,1712488245392,-500.0,0.00038904,5]
[321733924,1712488245401,-554.25,0.00039178,5]
[321733925,1712488245410,-484.27,0.00039178,5]
[321733926,1712488245418,-500.0,0.00039178,5]
[321733927,1712488245428,-500.0,0.00039178,5]
[321733928,1712488245437,-500.0,0.00039178,5]
[321733929,1712488245446,-500.0,0.00039178,5]
[321733930,1712488245456,-500.0,0.00039178,5]
[321733931,1712488245465,-961.87,0.00039178,5]
[321733932,1712488245475,-500.0,0.00039178,5]
[321733933,1712488245484,-500.0,0.00039178,5]
[321733934,1712488245493,-554.25,0.00039452,5]
[321733935,1712488245504,-500.0,0.00039452,5]
[321733936,1712488245513,-500.0,0.00039452,5]
[321733937,1712488245522,-500.0,0.00039452,5]
[321733938,1712488245531,-500.0,0.00039452,5]
[321733939,1712488245541,-500.0,0.00039452,5]
[321733940,1712488245550,-961.87,0.00039452,5]
[321733941,1712488245559,-500.0,0.00039452,5]
[321733942,1712488245568,-500.0,0.00039452,5]
[321733943,1712488245577,-1500.0,0.00039626,2]
[321733944,1712488245587,-560.0,0.00039689,3]
[321733945,1712488245596,-316.33756622,0.00039701,2]
[321733946,1712488245606,-500.0,0.00039725,5]
[321733947,1712488245615,-500.0,0.00039725,5]
[321733948,1712488245624,-500.0,0.00039725,5]
[321733949,1712488245634,-106059.83837197,0.00039726,5]
[321733950,1712488245643,-554.25,0.00039726,5]
[321733951,1712488245652,-500.0,0.00039726,5]
[321733952,1712488245662,-500.0,0.00039726,5]
[321733953,1712488245671,-500.0,0.00039726,5]
[321733954,1712488245680,-500.0,0.00039726,5]
[321733955,1712488245690,-623.06,0.00039726,5]
[321733956,1712488245700,-961.87,0.00039726,5]
[321733957,1712488245709,-500.0,0.00039726,5]
[321733958,1712488245719,-500.0,0.00039726,5]
[321733959,1712488245728,-500.0,0.00039999,5]
[321733960,1712488245737,-201.21338796,0.0004,120]
[321733961,1712488245747,-3563.99130963,0.0004,4]
[321733962,1712488245757,-22264.52,0.0004,2]
[321733963,1712488245766,-357.30471231,0.0004,2]
[321733964,1712488245776,-5144.36569731,0.0004,5]
[321733966,1712488245785,-554.25,0.0004,5]
[321733968,1712488245794,-500.0,0.0004,5]
[321733970,1712488245804,-500.0,0.0004,5]
[321733972,1712488245813,-249.35,0.0004,5]
[321733973,1712488245822,-500.0,0.0004,5]
[321733974,1712488245832,-961.87,0.0004,5]
[321733975,1712488245842,-500.0,0.0004,5]
[321733976,1712488245851,-500.0,0.0004,5]
[321733978,1712488245861,-4096.67821307,0.0004013,2]
[321733979,1712488245871,-10027.3869,0.00040162,30]
[321733980,1712488245881,-500.0,0.00040272,5]
[321733981,1712488245890,-554.25,0.00040273,5]
[321733982,1712488245899,-174.39,0.00040273,5]
[321733983,1712488245908,-500.0,0.00040273,5]
[321733985,1712488245917,-500.0,0.00040273,5]
[321733987,1712488245926,-961.87,0.00040273,5]
[321733989,1712488245935,-500.0,0.00040273,5]
[321733991,1712488245944,-500.0,0.00040273,5]
[321733992,1712488245954,-500.0,0.00040546,5]
[321733994,1712488245963,-45817.98079429,0.00040547,2]
[321733996,1712488245973,-554.25,0.00040547,5]
[321733998,1712488245983,-500.0,0.00040547,5]
[321733999,1712488245991,-500.0,0.00040547,5]
[321734000,1712488246002,-961.87,0.00040547,5]
[321734001,1712488246011,-500.0,0.00040547,5]
[321734002,1712488246020,-500.0,0.00040547,5]
[321734003,1712488246030,-554.25,0.00040821,5]
[321734004,1712488246039,-500.0,0.00040821,5]
[321734005,1712488246048,-227.63,0.00040821,5]
[321734006,1712488246058,-961.87,0.00040821,5]
[321734007,1712488246067,-500.0,0.00040821,5]
[321734008,1712488246076,-422.37,0.00040821,5]
[321734009,1712488246086,-136.99488026,0.00041,4]
[321734026,1712488952518,5000.0,0.00025,10]
[321734028,1712488974008,6542.0,0.000222,2]
[321734031,1712489029574,2164.58886836,0.00025,5]
[321734032,1712489047542,2164.58886836,0.000222,5]
[321734033,1712489069541,259.99740642,0.000222,5]
[321734034,1712489069572,1904.59146194,0.000222,5]
[321734035,1712489087554,2164.58886836,0.000222,5]
[321734036,1712489105556,2164.58886836,0.000222,5]
[321734037,1712489125557,2164.58886836,0.000222,5]
[321734039,1712489147565,2164.58886836,0.000222,5]
[321734040,1712489167563,2087.68762893,0.000222,5]
[321734048,1712489250007,20000.0,0.00041781,30]
[321734050,1712489277266,20000.0,0.00041781,30]
[321734051,1712489289639,20000.0,0.00041781,30]
[321734053,1712489305804,20000.0,0.00041781,30]
[321734056,1712489326929,24535.096283,0.00041781,30]
[321734129,1712489432728,-323.20061628,0.000229,2]
[321734130,1712489432740,-323.20061628,0.000279,2]
[321734131,1712489432750,-190.69912324,0.00032899,4]
[321734132,1712489432760,-323.20061628,0.000329,2]
[321734133,1712489432770,-464.42260257,0.00034999,4]
[321734134,1712489432780,-595.86148215,0.00036163,2]
[321734135,1712489432790,-195.965559,0.00036164,2]
[321734136,1712489432800,-191.684456,0.00036164,2]
[321734137,1712489432809,-155.02015262,0.0003626,4]
[321734138,1712489432819,-240.70901117,0.0003626,4]
[321734139,1712489432828,-155.70294239,0.0003626,4]
[321734140,1712489432838,-400.0,0.00036261,2]
[321734141,1712489432849,-24890.0,0.00036262,2]
[321734142,1712489432859,-260.85249603,0.00036278,7]
[321734143,1712489432868,-211.824072,0.00036378,2]
[321734144,1712489432879,-170.855526,0.00036423,2]
[321734145,1712489432889,-724.25892593,0.00037105,2]
[321734146,1712489432899,-770.38066978,0.00037855,2]
[321734147,1712489432909,-700.78769846,0.00038355,4]
[321734148,1712489432919,-778.19322645,0.00038355,4]
[321734149,1712489432929,-485.24209657,0.00038355,4]
[321734150,1712489432938,-336.11201983,0.00038629,5]
[321734151,1712489432948,-500.0,0.00038629,5]
[321734152,1712489432958,-500.0,0.00038629,5]
[321734153,1712489432968,-500.0,0.00038629,5]
[321734154,1712489432978,-500.0,0.00038629,5]
[321734155,1712489432988,-500.0,0.00038629,5]
[321734156,1712489432997,-500.0,0.00038629,5]
[321734157,1712489433008,-770.38066978,0.00038812,2]
[321734158,1712489433017,-500.0,0.00038903,5]
[321734159,1712489433026,-500.0,0.00038903,5]
[321734160,1712489433036,-500.0,0.00038903,5]
[321734161,1712489433046,-358.31,0.00038903,5]
[321734162,1712489433056,-500.0,0.00038903,5]
[321734163,1712489433066,-595.27807387,0.00039176,5]
[321734214,1712489447827,-155.02015262,0.00038628,4]
[321734215,1712489447836,-595.86148215,0.00038628,2]
[321734216,1712489447845,-519.68,0.00038629,5]
[321734217,1712489447854,-500.0,0.00038629,5]
[321734218,1712489447863,-500.0,0.00038903,5]
[321734219,1712489447872,-14.21192613,0.00039176,5]
[321734220,1712489447881,-500.0,0.00039176,5]
[321734221,1712489447889,-500.0,0.00039176,5]
[321734222,1712489447898,-510.32791129,0.00039176,5]
[321734223,1712489447907,-500.0,0.00039176,5]
[321734224,1712489447916,-200.28,0.00039177,5]
[321734225,1712489447925,-500.0,0.00039177,5]
[321734226,1712489447934,-500.0,0.00039177,5]
[321734227,1712489447943,-500.0,0.00039177,5]
[321734228,1712489447953,-609.49,0.0003945,5]
[321734230,1712489447963,-500.0,0.0003945,5]
[321734232,1712489447971,-500.0,0.0003945,5]
[321734234,1712489447980,-500.0,0.0003945,5]
[321734236,1712489447989,-500.0,0.00039451,5]
[321734238,1712489447998,-500.0,0.00039451,5]
[321734240,1712489448008,-177.82,0.00039451,5]
[321734242,1712489448016,-609.49,0.00039724,5]
[321734244,1712489448025,-608.19,0.00039724,5]
[321734246,1712489448035,-500.0,0.00039724,5]
[321734248,1712489448044,-500.0,0.00039724,5]
[321734250,1712489448053,-500.0,0.00039725,5]
[321734252,1712489448062,-630.08115096,0.00039725,5]
[321734254,1712489448071,-770.38066978,0.00039768,2]
[321734256,1712489448080,-500.0,0.00039769,5]
[321734258,1712489448088,-560.0,0.00039888,3]
[321734260,1712489448097,-609.49,0.00039998,5]
[321734262,1712489448106,-500.0,0.00039998,5]
[321734264,1712489448115,-460.85,0.00039998,5]
[321734266,1712489448124,-500.0,0.00039999,5]
[321734268,1712489448133,-3563.99130963,0.0004,4]
[321734269,1712489448143,-273.33525029,0.00040031,2]
[321734271,1712489448152,-6908.9693,0.00040141,30]
[321734273,1712489448162,-609.49,0.00040272,5]
[321734275,1712489448171,-500.0,0.00040272,5]
[321734277,1712489448180,-500.0,0.00040273,5]
[321734280,1712489448189,-45817.98079429,0.00040528,2]
[321734281,1712489448198,-609.49,0.00040546,5]
[321734284,1712489448208,-500.0,0.00040546,5]
[321734286,1712489448217,-500.0,0.00040547,5]
[321734288,1712489448226,-770.38066978,0.00040725,2]
[321734290,1712489448235,-609.49,0.0004082,5]
[321734292,1712489448244,-178.75,0.0004082,5]
[321734294,1712489448253,-500.0,0.00040821,5]
[321734296,1712489448262,-789.86607085,0.00041,4]
[321734298,1712489448271,-155.01705188,0.00041,31]
[321734300,1712489448279,-2000.0,0.00041,30]
[321734302,1712489448289,-2000.0,0.0004101,30]
[321734304,1712489448298,-2662.970289,0.0004102,30]
[321734306,1712489448308,-609.49,0.00041094,5]
[321734307,1712489448317,-500.0,0.00041095,5]
[321734309,1712489448326,-166.666666,0.00041096,2]
[321734311,1712489448335,-609.49,0.00041368,5]
[321734313,1712489448345,-500.0,0.00041369,5]
[321734315,1712489448355,-236.849724,0.00041471,2]
[321734317,1712489448364,-609.49,0.00041642,5]
[321734319,1712489448373,-500.0,0.00041643,5]
[321734321,1712489448383,-1000.0,0.00041646,7]
[321734324,1712489448392,-1000.0,0.00041654,7]
[321734326,1712489448401,-1000.0,0.00041662,7]
[321734327,1712489448411,-1000.0,0.00041665,7]
[321734329,1712489448420,-770.38066978,0.00041681,2]
[321734332,1712489448433,-1000.0,0.00041683,7]
[321734334,1712489448442,-1000.0,0.00041706,7]
[321734336,1712489448451,-1000.0,0.00041715,7]
[321734338,1712489448461,-1000.0,0.00041731,7]
[321734340,1712489448472,-302.9011823,0.00041738,7]
[321734341,1712489448481,-1000.0,0.0004174,7]
[321734343,1712489448490,-1000.0,0.00041747,7]
[321734346,1712489448500,-1000.0,0.00041772,7]
[321734348,1712489448510,-500.0,0.0004178,5]
[321734349,1712489448519,-151.0,0.00041781,2]
[321734351,1712489448528,-8080.03970919,0.00041781,2]
[321734353,1712489448538,-1157.35964847,0.00041781,4]
[321734356,1712489448549,-183.03940048,0.00041781,31]
[321734357,1712489448559,-1000.0,0.00041794,7]
[321734369,1712489448657,-1000.0,0.00041799,7]
[321734372,1712489448669,-1000.0,0.00041803,7]
[321734374,1712489448679,-1000.0,0.00041819,7]
[321734375,1712489448688,-1000.0,0.00041835,7]
[321734377,1712489448698,-315.79835197,0.00041846,7]
[321734379,1712489448708,-609.49,0.00041916,5]
[321734382,1712489448718,-500.0,0.00041917,5]
[321734383,1712489448728,-1474.0,0.00042,31]
[321734385,1712489448737,-166.666666,0.00042058,2]
[321734388,1712489448750,-609.49,0.0004219,5]
[321734389,1712489448759,-500.0,0.00042191,5]
[321734392,1712489448770,-609.49,0.00042464,5]
[321734393,1712489448781,-500.0,0.00042465,5]
[321734395,1712489448791,-273.33525027,0.00042466,2]
[321734397,1712489448806,-609.49,0.00042738,5]
[321734400,1712489448817,-259.57751703,0.00042739,5]
[321734401,1712489448827,-609.49,0.00043012,5]
[321734404,1712489448838,-166.666666,0.00043019,2]
[321734405,1712489448848,-609.49,0.00043286,5]
[321734407,1712489448860,-151.01963255,0.00043498,2]
[321734409,1712489448871,-609.49,0.0004356,5]
[321734412,1712489448882,-609.49,0.00043834,5]
[321734414,1712489448893,-783.0,0.00043876,3]
[321734416,1712489448904,-166.666666,0.00043981,2]
[321734417,1712489448914,-1500.0,0.00044,31]
[321734419,1712489448925,-412.40281423,0.00044107,2]
[321734421,1712489448935,-609.49,0.00044108,5]
[321734423,1712489448946,-302.0392651,0.00044229,4]
[321734425,1712489448958,-609.49,0.00044382,5]
[321734427,1712489448968,-9944.7844545,0.00044548,4]
[321734429,1712489448978,-389.26324702,0.00044655,4]
[321734431,1712489448988,-2510.81816316,0.00044655,4]
[321734433,1712489448998,-609.49,0.00044656,5]
[321734435,1712489449008,-156.350216,0.00044656,7]
[321734437,1712489449018,-156.350216,0.00044656,7]
[321734439,1712489449028,-3209.987,0.000448,90]
[321734441,1712489449039,-1500.0,0.000449,2]
[321734443,1712489449049,-273.33525027,0.000449,2]
[321734445,1712489449059,-609.49,0.0004493,5]
[321734447,1712489449070,-166.666666,0.00044942,2]
[321734449,1712489449080,-604.07853021,0.00044972,7]
[321734451,1712489449090,-500.0,0.00044999,5]
[321734452,1712489449100,-193.08517013,0.00044999,5]
[321734453,1712489449110,-1000.0,0.00044999,120]
[321734454,1712489449119,-79544.87877898,0.00045,5]
[321734455,1712489449129,-155.01550155,0.00045,4]
[321734456,1712489449138,-89683.26281155,0.00045,30]
[321734457,1712489449148,-8513.96741043,0.00045,120]
[321734458,1712489449157,-8653.45599608,0.00045,120]
[321734459,1712489449166,-361.37056157,0.00045,120]
[321734460,1712489449175,-156.350216,0.00045,7]
[321734461,1712489449184,-156.350216,0.00045,7]
[321734462,1712489449194,-156.350216,0.00045,7]
[321734463,1712489449203,-156.350216,0.00045,7]
[321734464,1712489449212,-609.49,0.00045204,5]
[321734465,1712489449222,-609.62517925,0.00045478,5]
[321734466,1712489449231,-60167.11260525,0.000456,120]
[321734467,1712489449241,-156.350216,0.000456,7]
[321734468,1712489449250,-156.350216,0.000456,7]
[321734469,1712489449259,-166.666666,0.00045904,2]
[321734470,1712489449269,-1208.15706042,0.0004611,30]
[321734471,1712489449278,-6250.0,0.00046575,120]